[Event "Early-Titled-Tuesday-Blitz-February-13-2024"]
[Site "Chess.com"]
[Date "2024.02.13"]
[Round "11"]
[White "amanjazu"]
[Black "kleopl"]
[Result "0-1"]
[WhiteElo "2509"]
[BlackElo "2539"]
[TimeControl "180+1"]
[EndTime "10:09:52 PST"]
[Termination "kleopl won on time"]

1. g3 {[%clk 0:03:00.9]} 1... c5 {[%clk 0:02:56.5]} 2. Bg2 {[%clk 0:03:01.8]}
2... Nc6 {[%clk 0:02:56.7]} 3. f4 {[%clk 0:03:02.2]} 3... g6 {[%clk 0:02:56.4]}
4. Nf3 {[%clk 0:03:02.6]} 4... Bg7 {[%clk 0:02:56.6]} 5. O-O {[%clk 0:03:03.5]}
5... d6 {[%clk 0:02:56.5]} 6. d3 {[%clk 0:03:04.2]} 6... e6 {[%clk 0:02:55.5]}
7. Nc3 {[%clk 0:03:04.9]} 7... Nge7 {[%clk 0:02:54.9]} 8. e4 {[%clk 0:03:05.5]}
8... O-O {[%clk 0:02:53.4]} 9. h3 {[%clk 0:03:04]} 9... Rb8 {[%clk 0:02:51.9]}
10. Kh2 {[%clk 0:03:04.3]} 10... b5 {[%clk 0:02:51.4]} 11. g4 {[%clk 0:03:04.9]}
11... f5 {[%clk 0:02:50.3]} 12. Ne2 {[%clk 0:03:00.7]} 12... b4 {[%clk
0:02:47.6]} 13. Ng3 {[%clk 0:02:53.5]} 13... Qc7 {[%clk 0:02:41.3]} 14. g5
{[%clk 0:02:39.3]} 14... a5 {[%clk 0:02:39.6]} 15. h4 {[%clk 0:02:32.3]} 15...
Ba6 {[%clk 0:02:36.8]} 16. Re1 {[%clk 0:02:29.4]} 16... a4 {[%clk 0:02:35.2]}
17. Rb1 {[%clk 0:02:28.6]} 17... c4 {[%clk 0:02:11.8]} 18. Bh3 {[%clk
0:02:16.9]} 18... b3 {[%clk 0:02:04.4]} 19. axb3 {[%clk 0:02:12.9]} 19... cxb3
{[%clk 0:02:04]} 20. c3 {[%clk 0:02:08.8]} 20... Na7 {[%clk 0:01:48.8]} 21. h5
{[%clk 0:01:53.5]} 21... Nb5 {[%clk 0:01:42.4]} 22. c4 {[%clk 0:01:37]} 22...
Nd4 {[%clk 0:01:40.6]} 23. Nxd4 {[%clk 0:01:37.5]} 23... Bxd4 {[%clk 0:01:40.7]}
24. exf5 {[%clk 0:01:34.9]} 24... exf5 {[%clk 0:01:36.9]} 25. Be3 {[%clk
0:01:35.4]} 25... Nc6 {[%clk 0:01:33.9]} 26. Qf3 {[%clk 0:01:32.7]} 26... Bxe3
{[%clk 0:01:26.8]} 27. Rxe3 {[%clk 0:01:33.6]} 27... Nb4 {[%clk 0:01:24]} 28.
Re6 {[%clk 0:01:24.1]} 28... Bb7 {[%clk 0:01:21.8]} 29. Qe2 {[%clk 0:01:12.5]}
29... Qf7 {[%clk 0:00:57.3]} 30. Re1 {[%clk 0:00:49.2]} 30... Nc2 {[%clk
0:00:55.2]} 31. Re7 {[%clk 0:00:43]} 31... Nxe1 {[%clk 0:00:54.8]} 32. Qxe1
{[%clk 0:00:32.6]} 32... Rfe8 {[%clk 0:00:51.2]} 33. Rxf7 {[%clk 0:00:29.1]}
33... Rxe1 {[%clk 0:00:49.9]} 34. hxg6 {[%clk 0:00:29.2]} 34... hxg6 {[%clk
0:00:49.2]} 35. Rf6 {[%clk 0:00:29.6]} 35... Kg7 {[%clk 0:00:46.1]} 36. Bxf5
{[%clk 0:00:16]} 36... Rh8+ {[%clk 0:00:44]} 37. Bh3 {[%clk 0:00:14.1]} 37... a3
{[%clk 0:00:44.2]} 38. Rxd6 {[%clk 0:00:10.2]} 38... axb2 {[%clk 0:00:37.2]} 39.
Rd7+ {[%clk 0:00:09.9]} 39... Kf8 {[%clk 0:00:37.2]} 40. Rd8+ {[%clk 0:00:05.6]}
40... Re8 {[%clk 0:00:34.7]} 41. Rd7 {[%clk 0:00:03.5]} 41... Bc8 {[%clk
0:00:33.3]} 0-1

[Event "Early-Titled-Tuesday-Blitz-February-13-2024"]
[Site "Chess.com"]
[Date "2024.02.13"]
[Round "11"]
[White "giovannibrandao7"]
[Black "guillembaches"]
[Result "0-1"]
[WhiteElo "2262"]
[BlackElo "2533"]
[TimeControl "180+1"]
[EndTime "10:09:52 PST"]
[Termination "guillembaches won by resignation"]

1. e4 {[%clk 0:03:00.9]} 1... c5 {[%clk 0:02:59.9]} 2. Nf3 {[%clk 0:03:01.3]}
2... d6 {[%clk 0:03:00.5]} 3. d4 {[%clk 0:03:01.3]} 3... cxd4 {[%clk 0:03:01.1]}
4. Nxd4 {[%clk 0:03:02.2]} 4... Nf6 {[%clk 0:03:01.6]} 5. Nc3 {[%clk 0:03:02.5]}
5... Nc6 {[%clk 0:03:02.3]} 6. Be2 {[%clk 0:03:00]} 6... e5 {[%clk 0:03:02.1]}
7. Nb3 {[%clk 0:02:55.2]} 7... Be7 {[%clk 0:03:02.6]} 8. O-O {[%clk 0:02:53.6]}
8... O-O {[%clk 0:03:03]} 9. Be3 {[%clk 0:02:53.9]} 9... Be6 {[%clk 0:03:02.4]}
10. Nd5 {[%clk 0:02:51.3]} 10... Nxe4 {[%clk 0:02:59.9]} 11. Bf3 {[%clk
0:02:12.7]} 11... Nf6 {[%clk 0:02:56.4]} 12. Nxe7+ {[%clk 0:02:09.1]} 12... Qxe7
{[%clk 0:02:54.6]} 13. Re1 {[%clk 0:02:06.8]} 13... h6 {[%clk 0:02:49.5]} 14.
Qd2 {[%clk 0:02:03.5]} 14... Rad8 {[%clk 0:02:40.4]} 15. g3 {[%clk 0:01:46]}
15... Ng4 {[%clk 0:02:31.8]} 16. Bg2 {[%clk 0:01:39.2]} 16... Nxe3 {[%clk
0:02:30]} 17. Qxe3 {[%clk 0:01:40.1]} 17... d5 {[%clk 0:02:26.7]} 18. c3 {[%clk
0:01:22.6]} 18... b6 {[%clk 0:02:17.9]} 19. Rad1 {[%clk 0:01:21.8]} 19... Qc7
{[%clk 0:02:14]} 20. Nc1 {[%clk 0:00:56.2]} 20... d4 {[%clk 0:02:05.6]} 21. Qe2
{[%clk 0:00:56.4]} 21... Bd5 {[%clk 0:02:00]} 22. Bxd5 {[%clk 0:00:51]} 22...
Rxd5 {[%clk 0:01:59.8]} 23. c4 {[%clk 0:00:51.6]} 23... Rd7 {[%clk 0:01:53.5]}
24. b3 {[%clk 0:00:51.3]} 24... f5 {[%clk 0:01:46.8]} 25. Nd3 {[%clk 0:00:51.2]}
25... Re7 {[%clk 0:01:28.1]} 26. Qh5 {[%clk 0:00:44.2]} 26... Rf6 {[%clk
0:01:17.9]} 27. Kg2 {[%clk 0:00:35.6]} 27... Qd7 {[%clk 0:01:10.7]} 28. f3
{[%clk 0:00:32.7]} 28... Qe8 {[%clk 0:01:03.1]} 29. Qh3 {[%clk 0:00:16.3]} 29...
Qg6 {[%clk 0:00:54]} 30. b4 {[%clk 0:00:11.9]} 30... Rfe6 {[%clk 0:00:51.7]} 31.
b5 {[%clk 0:00:11.9]} 31... Na5 {[%clk 0:00:51]} 32. f4 {[%clk 0:00:06.6]} 32...
Nxc4 {[%clk 0:00:39.5]} 33. fxe5 {[%clk 0:00:06.8]} 33... Ne3+ {[%clk
0:00:22.7]} 34. Rxe3 {[%clk 0:00:06.6]} 34... dxe3 {[%clk 0:00:23.1]} 35. Nf4
{[%clk 0:00:05.5]} 35... Qg4 {[%clk 0:00:20.5]} 36. Qxg4 {[%clk 0:00:02.4]}
36... fxg4 {[%clk 0:00:21.4]} 37. Nxe6 {[%clk 0:00:01.5]} 37... Rxe6 {[%clk
0:00:21.9]} 38. Re1 {[%clk 0:00:01.2]} 38... Rxe5 {[%clk 0:00:22]} 39. h3 {[%clk
0:00:01.2]} 39... gxh3+ {[%clk 0:00:21.3]} 40. Kxh3 {[%clk 0:00:02.1]} 40... g5
{[%clk 0:00:21]} 0-1

[Event "Early-Titled-Tuesday-Blitz-February-13-2024"]
[Site "Chess.com"]
[Date "2024.02.13"]
[Round "11"]
[White "Hovik_Hayrapetyan"]
[Black "kingofthenil"]
[Result "0-1"]
[WhiteElo "2885"]
[BlackElo "2735"]
[TimeControl "180+1"]
[EndTime "10:09:53 PST"]
[Termination "kingofthenil won by resignation"]

1. d4 {[%clk 0:03:00.9]} 1... d5 {[%clk 0:02:55.6]} 2. c4 {[%clk 0:03:00.8]}
2... e6 {[%clk 0:02:56.3]} 3. Nc3 {[%clk 0:03:00.6]} 3... a6 {[%clk 0:02:57]} 4.
cxd5 {[%clk 0:02:59.7]} 4... exd5 {[%clk 0:02:57.9]} 5. Nf3 {[%clk 0:03:00]}
5... Nf6 {[%clk 0:02:57.9]} 6. Bg5 {[%clk 0:02:59.8]} 6... Be6 {[%clk
0:02:58.7]} 7. Qb3 {[%clk 0:02:49.1]} 7... Nbd7 {[%clk 0:02:44.6]} 8. e3 {[%clk
0:02:40.5]} 8... Bd6 {[%clk 0:02:37.6]} 9. Qxb7 {[%clk 0:02:29.1]} 9... O-O
{[%clk 0:02:30.1]} 10. Qb3 {[%clk 0:02:18.7]} 10... c5 {[%clk 0:02:30.3]} 11.
Qc2 {[%clk 0:02:11]} 11... Qa5 {[%clk 0:02:14.4]} 12. Bxf6 {[%clk 0:02:03]}
12... Nxf6 {[%clk 0:02:14.9]} 13. Be2 {[%clk 0:01:54.5]} 13... cxd4 {[%clk
0:02:00.5]} 14. Nxd4 {[%clk 0:01:54.1]} 14... Rfc8 {[%clk 0:02:01]} 15. Nxe6
{[%clk 0:01:47.8]} 15... fxe6 {[%clk 0:02:01.9]} 16. O-O {[%clk 0:01:48]} 16...
Be5 {[%clk 0:01:51]} 17. Rac1 {[%clk 0:01:32]} 17... Rab8 {[%clk 0:01:49.8]} 18.
Bd3 {[%clk 0:01:16.9]} 18... Qb4 {[%clk 0:01:10]} 19. Bxa6 {[%clk 0:00:51.2]}
19... Bxh2+ {[%clk 0:00:39.4]} 20. Kxh2 {[%clk 0:00:50.7]} 20... Qh4+ {[%clk
0:00:40.3]} 21. Kg1 {[%clk 0:00:51.2]} 21... Ng4 {[%clk 0:00:41.2]} 22. Rfd1
{[%clk 0:00:48.3]} 22... Rf8 {[%clk 0:00:42.1]} 23. Rd2 {[%clk 0:00:02.8]} 23...
Qh2+ {[%clk 0:00:40.3]} 24. Kf1 {[%clk 0:00:03]} 24... Nxe3+ {[%clk 0:00:41]}
25. Ke2 {[%clk 0:00:03.5]} 25... Nxc2 {[%clk 0:00:41.9]} 26. Rcxc2 {[%clk
0:00:02.9]} 26... Qxg2 {[%clk 0:00:42.6]} 27. Nd1 {[%clk 0:00:02.9]} 27... Qg4+
{[%clk 0:00:30.3]} 28. Kf1 {[%clk 0:00:02.7]} 28... Qh3+ {[%clk 0:00:28.3]} 29.
Ke2 {[%clk 0:00:02.6]} 29... Ra8 {[%clk 0:00:18.8]} 30. Bd3 {[%clk 0:00:03]}
30... Rxa2 {[%clk 0:00:18.8]} 31. b4 {[%clk 0:00:03.3]} 31... Rxc2 {[%clk
0:00:18.6]} 32. Rxc2 {[%clk 0:00:04.2]} 32... Qf3+ {[%clk 0:00:18.8]} 33. Kd2
{[%clk 0:00:04.2]} 33... Qf4+ {[%clk 0:00:17.7]} 34. Kc3 {[%clk 0:00:04.7]}
34... Rc8+ {[%clk 0:00:15.1]} 35. Kb3 {[%clk 0:00:05.2]} 35... Rxc2 {[%clk
0:00:15.5]} 36. Bxc2 {[%clk 0:00:06.1]} 36... Qc4+ {[%clk 0:00:15.3]} 37. Kb2
{[%clk 0:00:06.5]} 37... Qxb4+ {[%clk 0:00:15.4]} 38. Kc1 {[%clk 0:00:07.4]}
38... h5 {[%clk 0:00:15.6]} 0-1

[Event "Early-Titled-Tuesday-Blitz-February-13-2024"]
[Site "Chess.com"]
[Date "2024.02.13"]
[Round "11"]
[White "Preobrazhenska_D2011"]
[Black "Cheer_Down"]
[Result "0-1"]
[WhiteElo "2366"]
[BlackElo "2496"]
[TimeControl "180+1"]
[EndTime "10:09:53 PST"]
[Termination "Cheer_Down won by resignation"]

1. e4 {[%clk 0:03:00.1]} 1... e6 {[%clk 0:02:59.9]} 2. d4 {[%clk 0:02:59.8]}
2... d5 {[%clk 0:02:59.7]} 3. Nc3 {[%clk 0:03:00]} 3... dxe4 {[%clk 0:02:57.9]}
4. Nxe4 {[%clk 0:02:59]} 4... Bd7 {[%clk 0:02:58.3]} 5. Nf3 {[%clk 0:02:46.7]}
5... Bc6 {[%clk 0:02:58.3]} 6. Bd3 {[%clk 0:02:36.5]} 6... Nd7 {[%clk
0:02:57.8]} 7. O-O {[%clk 0:02:27.7]} 7... Ngf6 {[%clk 0:02:57.7]} 8. Qe2 {[%clk
0:02:19.4]} 8... Nxe4 {[%clk 0:02:47.9]} 9. Bxe4 {[%clk 0:02:20.3]} 9... Bxe4
{[%clk 0:02:48.4]} 10. Qxe4 {[%clk 0:02:20.6]} 10... c6 {[%clk 0:02:48.9]} 11.
Bf4 {[%clk 0:01:45.8]} 11... Be7 {[%clk 0:02:46.6]} 12. Rfe1 {[%clk 0:01:40.2]}
12... O-O {[%clk 0:02:46]} 13. c4 {[%clk 0:01:37.4]} 13... Re8 {[%clk
0:02:35.7]} 14. Rad1 {[%clk 0:01:21.4]} 14... a5 {[%clk 0:02:33.6]} 15. Qc2
{[%clk 0:01:14.6]} 15... Bb4 {[%clk 0:02:16.9]} 16. Re3 {[%clk 0:01:06.4]} 16...
b5 {[%clk 0:02:07.7]} 17. c5 {[%clk 0:00:37.3]} 17... a4 {[%clk 0:02:07.3]} 18.
Ng5 {[%clk 0:00:30.3]} 18... Nf8 {[%clk 0:02:07]} 19. Rf3 {[%clk 0:00:20]} 19...
Ra7 {[%clk 0:02:02.9]} 20. Ne4 {[%clk 0:00:13.8]} 20... Qd5 {[%clk 0:01:53.7]}
21. Rg3 {[%clk 0:00:09.2]} 21... Ng6 {[%clk 0:01:45.2]} 22. Be5 {[%clk
0:00:05.7]} 22... Rd8 {[%clk 0:01:30.9]} 23. Bf6 {[%clk 0:00:06.1]} 23... Rdd7
{[%clk 0:01:23.6]} 24. Rg5 {[%clk 0:00:06.2]} 24... Qxa2 {[%clk 0:01:20.5]} 25.
h4 {[%clk 0:00:03.4]} 25... Qb3 {[%clk 0:01:16.6]} 26. Qb1 {[%clk 0:00:03.2]}
26... a3 {[%clk 0:01:12.2]} 27. h5 {[%clk 0:00:02.8]} 27... a2 {[%clk
0:01:08.3]} 28. Qa1 {[%clk 0:00:03.6]} 28... Qxd1+ {[%clk 0:01:08.4]} 29. Qxd1
{[%clk 0:00:03.5]} 29... a1=Q {[%clk 0:01:09.2]} 30. Qxa1 {[%clk 0:00:03.4]}
30... Rxa1+ {[%clk 0:01:09.3]} 31. Kh2 {[%clk 0:00:04.1]} 31... Re1 {[%clk
0:00:58.7]} 32. hxg6 {[%clk 0:00:03.1]} 32... hxg6 {[%clk 0:00:56.4]} 33. Be5
{[%clk 0:00:02.2]} 33... Rxe4 {[%clk 0:00:55.5]} 34. f3 {[%clk 0:00:02.4]} 34...
Rexd4 {[%clk 0:00:53.2]} 35. Bxd4 {[%clk 0:00:02.4]} 35... Rxd4 {[%clk
0:00:53.8]} 36. Kh3 {[%clk 0:00:01.6]} 36... Rd5 {[%clk 0:00:52.9]} 37. Rg4
{[%clk 0:00:01.8]} 37... Bxc5 {[%clk 0:00:52.8]} 38. b4 {[%clk 0:00:02.5]} 38...
Bd6 {[%clk 0:00:51.7]} 39. Re4 {[%clk 0:00:03.1]} 39... Kf8 {[%clk 0:00:50.6]}
40. f4 {[%clk 0:00:03.1]} 40... Ke7 {[%clk 0:00:50.1]} 41. g3 {[%clk 0:00:03.1]}
41... f5 {[%clk 0:00:49.8]} 42. Re2 {[%clk 0:00:02.8]} 42... Bxb4 {[%clk
0:00:49.7]} 43. Ra2 {[%clk 0:00:03.1]} 43... Rd7 {[%clk 0:00:49.5]} 44. Rb2
{[%clk 0:00:03.1]} 44... c5 {[%clk 0:00:48.5]} 0-1

[Event "Early-Titled-Tuesday-Blitz-February-13-2024"]
[Site "Chess.com"]
[Date "2024.02.13"]
[Round "11"]
[White "Agibileg"]
[Black "Sanyura"]
[Result "1-0"]
[WhiteElo "2727"]
[BlackElo "2659"]
[TimeControl "180+1"]
[EndTime "10:09:57 PST"]
[Termination "Agibileg won on time"]

1. d4 {[%clk 0:03:00.9]} 1... Nf6 {[%clk 0:03:00]} 2. c4 {[%clk 0:02:56.8]} 2...
g6 {[%clk 0:03:00.3]} 3. Nc3 {[%clk 0:02:52.2]} 3... Bg7 {[%clk 0:03:00.8]} 4.
e4 {[%clk 0:02:50.7]} 4... d6 {[%clk 0:03:01.3]} 5. Be2 {[%clk 0:02:38.9]} 5...
O-O {[%clk 0:03:01.3]} 6. Nf3 {[%clk 0:02:38.2]} 6... e5 {[%clk 0:03:00.5]} 7.
O-O {[%clk 0:02:37.3]} 7... Nc6 {[%clk 0:03:00.7]} 8. d5 {[%clk 0:02:36.3]} 8...
Ne7 {[%clk 0:03:00.6]} 9. Nd2 {[%clk 0:02:36.2]} 9... Ne8 {[%clk 0:02:57.5]} 10.
b4 {[%clk 0:02:36.4]} 10... f5 {[%clk 0:02:58]} 11. c5 {[%clk 0:02:35.8]} 11...
f4 {[%clk 0:02:57.9]} 12. Bg4 {[%clk 0:02:34.8]} 12... h5 {[%clk 0:02:56.6]} 13.
Bxc8 {[%clk 0:02:34.3]} 13... Rxc8 {[%clk 0:02:57.5]} 14. f3 {[%clk 0:02:34]}
14... g5 {[%clk 0:02:57.3]} 15. Nc4 {[%clk 0:02:32.5]} 15... Ng6 {[%clk
0:02:57.4]} 16. Ba3 {[%clk 0:02:32.2]} 16... g4 {[%clk 0:02:57.7]} 17. b5 {[%clk
0:02:31.8]} 17... Qg5 {[%clk 0:02:54.9]} 18. Kh1 {[%clk 0:02:21.4]} 18... Nh4
{[%clk 0:02:51]} 19. Qe2 {[%clk 0:02:11.6]} 19... Rf7 {[%clk 0:02:41.8]} 20.
Rac1 {[%clk 0:02:07.8]} 20... Bf8 {[%clk 0:02:39.5]} 21. b6 {[%clk 0:02:03.8]}
21... axb6 {[%clk 0:02:33.6]} 22. cxb6 {[%clk 0:02:03.3]} 22... cxb6 {[%clk
0:02:32.5]} 23. Nxb6 {[%clk 0:02:03.2]} 23... Rd8 {[%clk 0:02:31.3]} 24. Nb5
{[%clk 0:01:57.7]} 24... Rg7 {[%clk 0:02:28.5]} 25. Nc8 {[%clk 0:01:52.5]} 25...
Qf6 {[%clk 0:01:52.6]} 26. Nb6 {[%clk 0:01:38.1]} 26... Kh7 {[%clk 0:01:38.2]}
27. Bb4 {[%clk 0:01:23.8]} 27... Qg5 {[%clk 0:00:52.4]} 28. a4 {[%clk
0:01:14.6]} 28... Nf6 {[%clk 0:00:51.2]} 29. Nc7 {[%clk 0:01:05]} 29... Re8
{[%clk 0:00:32.3]} 30. Nxe8 {[%clk 0:01:01.7]} 30... Nxe8 {[%clk 0:00:31.9]} 31.
Rc8 {[%clk 0:01:01.6]} 31... Qg6 {[%clk 0:00:26.5]} 32. Be1 {[%clk 0:00:58.2]}
32... g3 {[%clk 0:00:25.2]} 33. h3 {[%clk 0:00:57.3]} 33... Be7 {[%clk
0:00:23.5]} 34. Bb4 {[%clk 0:00:47.2]} 34... Nf6 {[%clk 0:00:22.6]} 35. Rc7
{[%clk 0:00:46.2]} 35... Kh6 {[%clk 0:00:07.4]} 36. Rxb7 {[%clk 0:00:40.6]}
36... Nh7 {[%clk 0:00:05.5]} 37. Nc8 {[%clk 0:00:36.8]} 37... Bf8 {[%clk
0:00:02.7]} 38. Rxg7 {[%clk 0:00:35]} 38... Kxg7 {[%clk 0:00:01.6]} 39. a5
{[%clk 0:00:26.3]} 39... Ng5 {[%clk 0:00:02.1]} 40. Rg1 {[%clk 0:00:22.8]} 1-0

[Event "Early-Titled-Tuesday-Blitz-February-13-2024"]
[Site "Chess.com"]
[Date "2024.02.13"]
[Round "11"]
[White "Bigfish1995"]
[Black "wonderfultime"]
[Result "1-0"]
[WhiteElo "3179"]
[BlackElo "3084"]
[TimeControl "180+1"]
[EndTime "10:10:00 PST"]
[Termination "Bigfish1995 won on time"]

1. e4 {[%clk 0:02:59.5]} 1... e5 {[%clk 0:03:00.3]} 2. Nf3 {[%clk 0:02:59.6]}
2... Nc6 {[%clk 0:03:00.8]} 3. Bb5 {[%clk 0:02:58.7]} 3... a6 {[%clk 0:03:00.8]}
4. Ba4 {[%clk 0:02:58.8]} 4... Bc5 {[%clk 0:03:01.3]} 5. c3 {[%clk 0:02:55.2]}
5... Nge7 {[%clk 0:03:01.8]} 6. O-O {[%clk 0:02:51.6]} 6... Ng6 {[%clk
0:03:01.7]} 7. d4 {[%clk 0:02:49.5]} 7... Ba7 {[%clk 0:03:02]} 8. Bg5 {[%clk
0:02:49.2]} 8... f6 {[%clk 0:03:02.5]} 9. Be3 {[%clk 0:02:49.5]} 9... O-O {[%clk
0:03:01.4]} 10. Re1 {[%clk 0:02:47]} 10... d6 {[%clk 0:03:02]} 11. h3 {[%clk
0:02:43]} 11... Kh8 {[%clk 0:03:02.3]} 12. Nbd2 {[%clk 0:02:30.8]} 12... exd4
{[%clk 0:03:01.6]} 13. cxd4 {[%clk 0:02:30.2]} 13... Nce7 {[%clk 0:03:01.7]} 14.
d5 {[%clk 0:02:10.1]} 14... Bxe3 {[%clk 0:02:58.2]} 15. Rxe3 {[%clk 0:02:11]}
15... f5 {[%clk 0:02:34.3]} 16. Rc1 {[%clk 0:02:10.6]} 16... Nf4 {[%clk
0:02:30.3]} 17. Bb3 {[%clk 0:02:01.9]} 17... fxe4 {[%clk 0:01:32]} 18. Nxe4
{[%clk 0:02:00.3]} 18... h6 {[%clk 0:01:29.8]} 19. Qd2 {[%clk 0:01:52.5]} 19...
Neg6 {[%clk 0:01:27.5]} 20. Ng3 {[%clk 0:01:34.1]} 20... Bd7 {[%clk 0:01:16.3]}
21. Bc2 {[%clk 0:01:33.7]} 21... Rc8 {[%clk 0:01:10]} 22. Bxg6 {[%clk
0:01:16.2]} 22... Nxg6 {[%clk 0:01:10.9]} 23. Nh5 {[%clk 0:01:05.5]} 23... Rf5
{[%clk 0:01:03.5]} 24. g4 {[%clk 0:01:03.9]} 24... Rf7 {[%clk 0:01:03.8]} 25.
Nd4 {[%clk 0:01:01.3]} 25... Qh4 {[%clk 0:00:35.8]} 26. Ne6 {[%clk 0:00:58.8]}
26... c6 {[%clk 0:00:29.4]} 27. f4 {[%clk 0:00:49.1]} 27... Rg8 {[%clk
0:00:26.9]} 28. dxc6 {[%clk 0:00:42.4]} 28... Bxc6 {[%clk 0:00:27.8]} 29. f5
{[%clk 0:00:40.7]} 29... Ne5 {[%clk 0:00:24.9]} 30. Nef4 {[%clk 0:00:39.7]}
30... Qg5 {[%clk 0:00:20.7]} 31. Qxd6 {[%clk 0:00:37.5]} 31... Nxg4 {[%clk
0:00:12]} 32. Rg3 {[%clk 0:00:33]} 32... Rd8 {[%clk 0:00:09.5]} 33. Qg6 {[%clk
0:00:30.1]} 33... Rfd7 {[%clk 0:00:08.7]} 34. Rxg4 {[%clk 0:00:26]} 34... Qe7
{[%clk 0:00:04.4]} 35. Ne6 {[%clk 0:00:26.1]} 35... Rd1+ {[%clk 0:00:04.4]} 36.
Rxd1 {[%clk 0:00:26.3]} 36... Rxd1+ {[%clk 0:00:05.3]} 37. Kf2 {[%clk
0:00:26.5]} 37... Rd2+ {[%clk 0:00:04.8]} 38. Ke1 {[%clk 0:00:26.2]} 38... Rxb2
{[%clk 0:00:02.5]} 39. Qxg7+ {[%clk 0:00:23.9]} 39... Qxg7 {[%clk 0:00:03]} 40.
Rxg7 {[%clk 0:00:24.2]} 40... Be4 {[%clk 0:00:02]} 41. Nf6 {[%clk 0:00:19.9]}
1-0

[Event "Early-Titled-Tuesday-Blitz-February-13-2024"]
[Site "Chess.com"]
[Date "2024.02.13"]
[Round "11"]
[White "abelmat"]
[Black "LeoWin2012"]
[Result "0-1"]
[WhiteElo "2081"]
[BlackElo "2226"]
[TimeControl "180+1"]
[EndTime "10:10:03 PST"]
[Termination "LeoWin2012 won on time"]

1. d4 {[%clk 0:03:00.9]} 1... e6 {[%clk 0:03:00.9]} 2. c4 {[%clk 0:03:00.7]}
2... a6 {[%clk 0:03:01.8]} 3. Nf3 {[%clk 0:03:01.2]} 3... h6 {[%clk 0:03:02.7]}
4. Nc3 {[%clk 0:03:01.1]} 4... Nf6 {[%clk 0:03:02.1]} 5. Bf4 {[%clk 0:03:01.2]}
5... Bb4 {[%clk 0:03:02.2]} 6. Qc2 {[%clk 0:02:58.4]} 6... c5 {[%clk 0:03:00.5]}
7. e3 {[%clk 0:02:57.4]} 7... Nc6 {[%clk 0:02:59.8]} 8. a3 {[%clk 0:02:57]} 8...
cxd4 {[%clk 0:03:00]} 9. exd4 {[%clk 0:02:55]} 9... Bxc3+ {[%clk 0:02:59]} 10.
Qxc3 {[%clk 0:02:54.8]} 10... d5 {[%clk 0:02:59]} 11. Bd3 {[%clk 0:02:47.9]}
11... dxc4 {[%clk 0:02:57.6]} 12. Bxc4 {[%clk 0:02:47.8]} 12... Nd5 {[%clk
0:02:57.2]} 13. Bxd5 {[%clk 0:02:43.4]} 13... Qxd5 {[%clk 0:02:58.1]} 14. O-O
{[%clk 0:02:40.9]} 14... O-O {[%clk 0:02:56.1]} 15. Rac1 {[%clk 0:02:36.1]}
15... Bd7 {[%clk 0:02:50.3]} 16. Ne5 {[%clk 0:02:18.9]} 16... Nxe5 {[%clk
0:02:47.4]} 17. dxe5 {[%clk 0:02:13.2]} 17... Bc6 {[%clk 0:02:43.7]} 18. Qg3
{[%clk 0:02:12.2]} 18... Kh7 {[%clk 0:02:35.3]} 19. h3 {[%clk 0:02:08.8]} 19...
g5 {[%clk 0:02:34]} 20. Be3 {[%clk 0:02:03.4]} 20... Rg8 {[%clk 0:02:30.4]} 21.
Rc5 {[%clk 0:02:02.3]} 21... Qe4 {[%clk 0:02:29.9]} 22. Rfc1 {[%clk 0:01:57.6]}
22... Rg6 {[%clk 0:01:45.1]} 23. b4 {[%clk 0:01:47.1]} 23... Rag8 {[%clk
0:01:43.3]} 24. R5c4 {[%clk 0:01:44.5]} 24... Qf5 {[%clk 0:01:41.7]} 25. f3
{[%clk 0:00:57.9]} 25... h5 {[%clk 0:01:40.9]} 26. Qf2 {[%clk 0:00:50.8]} 26...
g4 {[%clk 0:01:36.6]} 27. Rf4 {[%clk 0:00:38.2]} 27... Qxe5 {[%clk 0:01:34.2]}
28. Rxf7+ {[%clk 0:00:37.4]} 28... R8g7 {[%clk 0:01:22.6]} 29. Rxg7+ {[%clk
0:00:36.8]} 29... Qxg7 {[%clk 0:01:22.6]} 30. hxg4 {[%clk 0:00:27]} 30... hxg4
{[%clk 0:01:21.4]} 31. Qh4+ {[%clk 0:00:26]} 31... Kg8 {[%clk 0:01:21.3]} 32.
Qd8+ {[%clk 0:00:20]} 32... Qf8 {[%clk 0:01:20.7]} 33. Qxf8+ {[%clk 0:00:16.9]}
33... Kxf8 {[%clk 0:01:21.6]} 34. f4 {[%clk 0:00:16.4]} 34... Ke7 {[%clk
0:01:18]} 35. Kf2 {[%clk 0:00:15.1]} 35... g3+ {[%clk 0:01:16.1]} 36. Ke2 {[%clk
0:00:12.7]} 36... Bxg2 {[%clk 0:01:14.8]} 37. Rc7+ {[%clk 0:00:12.4]} 37... Ke8
{[%clk 0:01:13.8]} 38. Kd3 {[%clk 0:00:10.4]} 38... Bd5 {[%clk 0:01:11.4]} 39.
Kd4 {[%clk 0:00:09]} 39... g2 {[%clk 0:01:11.5]} 40. Ke5 {[%clk 0:00:08.5]}
40... g1=Q {[%clk 0:01:09.8]} 41. Bxg1 {[%clk 0:00:08]} 41... Rxg1 {[%clk
0:01:10.7]} 42. Kf6 {[%clk 0:00:08]} 42... Ra1 {[%clk 0:01:08.2]} 43. Ke5 {[%clk
0:00:06.9]} 43... Rxa3 {[%clk 0:01:07.8]} 44. f5 {[%clk 0:00:07.1]} 44... Re3+
{[%clk 0:01:07.1]} 45. Kd6 {[%clk 0:00:07]} 45... Bb3 {[%clk 0:00:59.7]} 46. f6
{[%clk 0:00:06.5]} 46... Rd3+ {[%clk 0:00:57.2]} 47. Ke5 {[%clk 0:00:05.5]}
47... Rd7 {[%clk 0:00:55.3]} 48. Rc3 {[%clk 0:00:04.7]} 48... Bd5 {[%clk
0:00:52.6]} 49. Rh3 {[%clk 0:00:02.8]} 49... Rf7 {[%clk 0:00:51]} 0-1